{"text_format":"1","workbook":"xlsx","n_sheets":1,"sheets":["Sheet1"],"not_rendered":{"charts":1,"images":9,"macros":1,"external_links":0,"defined_names":0,"comments":0,"pivot_tables":0},"unopened":[],"bounds":{"document_bytes":16777216,"sheet_cells":100000,"rows_first":2000,"rows_last":500,"rows_between":2000,"halvings":0,"cell_chars":16384,"cell_head_chars":4096},"cells_cut":0,"cells_raw":0,"read":"whole","date_system":"1900"}

{"sheet":"Sheet1","index":0,"n_rows":40,"n_cols":26,"rows_kept":40,"cut":false,"hidden":false,"merged":[]}
[]
[null,null,null,"Torque Practicer",null,null,null,null,null,null,null,null,null,null,null,null,null,null,null,null,null,"Selections",null,null,"Name","Angle"]
[null,null,"Force Magnitude",null,null,null,{"$f":"TEXT(V3,\"0.0\")&\" N\"","v":"18.0 N"},null,null,null,null,null,null,null,null,null,null,null,null,null,null,18,null,0,"North",{"$f":"PI()/2","v":1.5707963267948966}]
[null,null,"Force: x",null,null,null,{"$f":"TEXT(V4/2,\"0.00\")&\" m\"","v":"4.00 m"},null,null,null,null,null,null,null,null,null,null,null,null,null,null,8,null,1,"East",{"$f":"0","v":0}]
[null,null,"Force: y",null,null,null,{"$f":"TEXT(V5/2,\"0.00\")&\" m\"","v":"2.00 m"},null,null,null,null,null,null,null,null,null,null,null,null,null,null,4,null,2,"South",{"$f":"-Z3","v":-1.5707963267948966}]
[null,null,"Orientation?",null,null,null,{"$f":"VLOOKUP(W6,X3:Y6,2)","v":"North"},null,null,null,null,null,null,null,null,null,null,null,null,null,null,4,{"$f":"MOD(V6,4)","v":0},3,"West",{"$f":"PI()","v":3.1415926535897931}]
[null,null,"Axis: x",null,null,null,{"$f":"TEXT(V7/2,\"0.00\")&\" m\"","v":"4.00 m"},null,null,null,null,null,null,null,null,null,null,null,null,null,null,8,null,null,null,{"$f":"VLOOKUP(W6,X3:Z6,3)","v":1.5707963267948966}]
[null,null,"Axis: y",null,null,null,{"$f":"TEXT(V8/2,\"0.00\")&\" m\"","v":"0.50 m"},null,null,null,null,null,null,null,null,null,null,null,null,null,null,1,false]
[null,null,null,null,null,null,null,null,null,null,null,null,null,null,null,null,null,null,null,null,null,false,false]
[null,null,null,null,null,{"$f":"IF(V9,Y40,\"\")","v":""},null,null,null,null,null,null,null,null,null,null,null,null,null,null,null,null,null,null,"Arrow Scale",{"$f":"V3/25+0.7","v":1.42}]
[]
[null,null,null,null,null,null,null,null,null,null,null,null,null,null,null,null,null,null,null,null,null,"Plot Data",null,null,"Raw Arrow Data"]
[null,null,null,null,null,null,null,null,null,null,null,null,null,null,null,null,null,null,null,null,null,"x","y",null,"x","y"]
[null,null,null,null,null,null,null,null,null,null,null,null,null,null,null,null,null,null,null,null,null,0,0,null,0,0]
[null,null,null,null,null,{"$f":"IF(W9,TEXT(X39,\"0.00\")&\" m\",\"\")","v":""},null,null,null,null,null,null,null,null,null,null,null,null,null,null,null,5,0,null,1,0]
[null,null,null,null,null,null,null,null,null,null,null,null,null,null,null,null,null,null,null,null,null,5,5,null,0.85,0.05]
[null,null,null,null,null,null,null,null,null,null,null,null,null,null,null,null,null,null,null,null,null,0,5,null,1,0]
[null,null,null,null,null,null,null,null,null,null,null,null,null,null,null,null,null,null,null,null,null,0,0,null,0.85,-0.05]
[]
[null,null,null,null,null,null,null,null,null,null,null,null,null,null,null,null,null,null,null,null,null,"Axis Data",null,null,"Rotated Angle Data"]
[null,null,null,null,null,null,null,null,null,null,null,null,null,null,null,null,null,null,null,null,null,"x","y",null,"x","y"]
[null,null,null,null,null,null,null,null,null,null,null,null,null,null,null,null,null,null,null,null,null,{"$f":"V7/2","v":4},{"$f":"V8/2","v":0.5},null,{"$f":"Y14*COS($Z$7)-Z14*SIN($Z$7)","v":0},{"$f":"Y14*SIN($Z$7)+Z14*COS($Z$7)","v":0}]
[null,null,null,null,null,null,null,null,null,null,null,null,null,null,null,null,null,null,null,null,null,null,null,null,{"$f":"Y15*COS($Z$7)-Z15*SIN($Z$7)","v":6.1257422745431001E-17},{"$f":"Y15*SIN($Z$7)+Z15*COS($Z$7)","v":1}]
[null,null,null,null,null,null,null,null,null,null,null,null,null,null,null,null,null,null,null,null,null,"Scaled/Moved Arrow",null,null,{"$f":"Y16*COS($Z$7)-Z16*SIN($Z$7)","v":-4.9999999999999947E-2},0.85]
[null,null,null,null,null,null,null,null,null,null,null,null,null,null,null,null,null,null,null,null,null,"x","y",null,6.1257422745431001E-17,1]
[null,null,null,null,null,null,null,null,null,null,null,null,null,null,null,null,null,null,null,null,null,{"$f":"Y22*$Z$10+$Y$28","v":4},{"$f":"Z22*$Z$10+$Z$28","v":2},null,5.0000000000000058E-2,0.85]
[null,null,null,null,null,null,null,null,null,null,null,null,null,null,null,null,null,null,null,null,null,{"$f":"Y23*$Z$10+$Y$28","v":4},{"$f":"Z23*$Z$10+$Z$28","v":3.42},null,"Offset"]
[null,null,null,null,null,null,null,null,null,null,null,null,null,null,null,null,null,null,null,null,null,3.9290000000000003,3.2069999999999999,null,{"$f":"V4/2","v":4},{"$f":"V5/2","v":2}]
[null,null,null,null,null,null,null,null,null,null,null,null,null,null,null,null,null,null,null,null,null,4,3.42]
[null,null,null,null,null,null,null,null,null,null,null,null,null,null,null,null,null,null,null,null,null,4.0709999999999997,3.2069999999999999,null,"Force"]
[null,null,null,null,null,null,null,null,null,null,null,null,null,null,null,null,null,null,null,null,null,null,null,null,"x","y"]
[null,null,null,null,null,null,null,null,null,null,null,null,null,null,null,null,null,null,null,null,null,"R Vector",null,null,{"$f":"V3*COS(Z7)","v":1.102633609417758E-15},{"$f":"V3*SIN(Z7)","v":18}]
[null,null,null,null,null,null,null,null,null,null,null,null,null,null,null,null,null,null,null,null,null,"x","y","Mag"]
[null,null,null,null,null,null,null,null,null,null,null,null,null,null,null,null,null,null,null,null,null,{"$f":"IF($W$8,V22,-10)","v":-10},{"$f":"IF($W$8,W22,-10)","v":-10},{"$f":"SQRT((V35-V34)^2+(W35-W34)^2)","v":0},"radius:"]
[null,null,null,null,null,null,null,null,null,null,null,null,null,null,null,null,null,null,null,null,null,{"$f":"IF($W$8,V26,-10)","v":-10},{"$f":"IF($W$8,W26,-10)","v":-10},null,"x","y"]
[null,null,null,null,null,null,null,null,null,null,null,null,null,null,null,null,null,null,null,null,null,null,null,null,{"$f":"Y28-V22","v":0},{"$f":"Z28-W22","v":1.5}]
[null,null,null,null,null,null,null,null,null,null,null,null,null,null,null,null,null,null,null,null,null,"R Perp"]
[null,null,null,null,null,null,null,null,null,null,null,null,null,null,null,null,null,null,null,null,null,"x","y","Mag","Torque"]
[null,null,null,null,null,null,null,null,null,null,null,null,null,null,null,null,null,null,null,null,null,{"$f":"IF($W$9,V22,-10)","v":-10},{"$f":"IF($W$9,W22,-10)","v":-10},{"$f":"SQRT((V40-V39)^2+(W40-W39)^2)","v":0},{"$f":"Y36*Z32-Y32*Z36","v":-1.653950414126637E-15}]
[null,null,null,null,null,null,null,null,null,null,null,null,null,null,null,null,null,null,null,null,null,{"$f":"IF(W9,V39+Y36*SIGN(ROUND(Z32,2))^2,-10)","v":-10},{"$f":"IF(W9,W39+Z36*SIGN(ROUND(Y32,2))^2,-10)","v":-10},null,{"$f":"TEXT(Y39,\"0.00\")&\" Nm\"","v":"0.00 Nm"}]